[Event "Polofinale MCR junioru 2023"]
[Site "Czech Republic"]
[Date "2023.11.16"]
[Round "7.8"]
[White "Vilimek, Vit"]
[Black "Lang, Simon"]
[Result "1-0"]
[TimeControl "90 min per 40 moves + 15 min + 30 sec / move from move 1"]
[WhiteFideId "23718218"]
[BlackFideId "23712449"]
[WhiteElo "2163"]
[BlackElo "2090"]

1. e4 {[%clk 01:30:57]} {[%emt 00:00:03]} e6 {[%clk 01:27:02]} {[%emt
00:03:58]} 2. d4 {[%clk 01:31:25]} {[%emt 00:00:02]} d5 {[%clk 01:27:23]}
{[%emt 00:00:09]} 3. Nc3 {[%clk 01:31:49]} {[%emt 00:00:05]} Nf6 {[%clk
01:27:36]} {[%emt 00:00:17]} 4. Bg5 {[%clk 01:31:58]} {[%emt 00:00:21]} dxe4
{[%clk 01:27:45]} {[%emt 00:00:21]} 5. f3 {[%clk 01:28:22]} {[%emt 00:04:06]}
c5 {[%clk 01:21:35]} {[%emt 00:06:40]} 6. Bb5+ {[%clk 01:25:24]} {[%emt
00:03:29]} Bd7 {[%clk 01:18:06]} {[%emt 00:03:59]} 7. Bxd7+ {[%clk 01:21:50]}
{[%emt 00:04:04]} Nbxd7 {[%clk 01:16:51]} {[%emt 00:01:45]} 8. Nxe4 {[%clk
01:11:42]} {[%emt 00:10:35]} Qc7 {[%clk 01:11:44]} {[%emt 00:05:39]} 9. dxc5
{[%clk 01:05:57]} {[%emt 00:06:16]} Nxe4 {[%clk 01:09:05]} {[%emt 00:03:08]} 10.
fxe4 {[%clk 01:05:33]} {[%emt 00:00:54]} Qe5 {[%clk 01:07:48]} {[%emt
00:01:48]} 11. c6 {[%clk 00:42:35]} {[%emt 00:23:28]} Qxe4+ {[%clk 01:04:06]}
{[%emt 00:04:11]} 12. Qe2 {[%clk 00:42:22]} {[%emt 00:00:43]} Qxe2+ {[%clk
01:01:57]} {[%emt 00:02:39]} 13. Nxe2 {[%clk 00:42:44]} {[%emt 00:00:08]} bxc6
{[%clk 01:02:23]} {[%emt 00:00:04]} 14. Nd4 {[%clk 00:23:52]} {[%emt 00:19:22]}
Bc5 {[%clk 00:55:10]} {[%emt 00:07:42]} 15. O-O-O {[%clk 00:22:46]} {[%emt
00:01:37]} Rc8 {[%clk 00:46:48]} {[%emt 00:08:52]} 16. Rhe1 {[%clk 00:18:53]}
{[%emt 00:04:24]} h6 {[%clk 00:42:06]} {[%emt 00:05:12]} 17. Bf4 {[%clk
00:17:48]} {[%emt 00:01:34]} Nb6 {[%clk 00:40:12]} {[%emt 00:02:24]} 18. Nb3
{[%clk 00:12:14]} {[%emt 00:06:05]} Be7 {[%clk 00:40:12]} {[%emt 00:00:29]} 19.
Re5 {[%clk 00:09:57]} {[%emt 00:02:47]} Nd5 {[%clk 00:39:34]} {[%emt 00:01:08]}
20. Bg3 {[%clk 00:09:30]} {[%emt 00:00:57]} O-O {[%clk 00:39:37]} {[%emt
00:00:26]} 21. c4 {[%clk 00:08:07]} {[%emt 00:01:55]} Nb6 {[%clk 00:38:20]}
{[%emt 00:01:46]} 22. Nd2 {[%clk 00:06:05]} {[%emt 00:02:32]} Rfd8 {[%clk
00:37:33]} {[%emt 00:01:16]} 23. b3 {[%clk 00:05:50]} {[%emt 00:00:46]} Bb4
{[%clk 00:34:47]} {[%emt 00:03:16]} 24. Kc2 {[%clk 00:04:20]} {[%emt 00:02:00]}
Nd7 {[%clk 00:34:10]} {[%emt 00:01:07]} 25. Re2 {[%clk 00:04:06]} {[%emt
00:00:44]} Nf6 {[%clk 00:32:09]} {[%emt 00:02:31]} 26. h3 {[%clk 00:02:38]}
{[%emt 00:01:58]} Kf8 {[%clk 00:30:26]} {[%emt 00:02:13]} 27. Be5 {[%clk
00:02:41]} {[%emt 00:00:28]} Ke7 {[%clk 00:29:47]} {[%emt 00:01:09]} 28. Rf1
{[%clk 00:01:28]} {[%emt 00:01:42]} Ne8 {[%clk 00:29:16]} {[%emt 00:01:01]} 29.
Nf3 {[%clk 00:01:26]} {[%emt 00:00:32]} f6 {[%clk 00:29:06]} {[%emt 00:00:40]}
30. Bb2 {[%clk 00:01:47]} {[%emt 00:00:09]} c5 {[%clk 00:26:54]} {[%emt
00:02:42]} 31. Nh4 {[%clk 00:01:27]} {[%emt 00:00:50]} Kf7 {[%clk 00:23:26]}
{[%emt 00:03:58]} 32. Nf3 {[%clk 00:01:49]} {[%emt 00:00:08]} Rd6 {[%clk
00:21:58]} {[%emt 00:01:59]} 33. Ne5+ {[%clk 00:01:15]} {[%emt 00:01:03]} Kg8
{[%clk 00:22:11]} {[%emt 00:00:17]} 34. Ng6 {[%clk 00:01:27]} {[%emt 00:00:19]}
Rcd8 {[%clk 00:22:11]} {[%emt 00:00:28]} 35. Rff2 {[%clk 00:01:03]} {[%emt
00:00:55]} Nc7 {[%clk 00:21:50]} {[%emt 00:00:51]} 36. h4 {[%clk 00:00:57]}
{[%emt 00:00:36]} Ra6 {[%clk 00:17:13]} {[%emt 00:05:07]} 37. a4 {[%clk
00:00:51]} {[%emt 00:00:36]} Rad6 {[%clk 00:16:41]} {[%emt 00:01:02]} 38. g4
{[%clk 00:00:58]} {[%emt 00:00:24]} Kh7 {[%clk 00:13:53]} {[%emt 00:03:17]} 39.
Nf4 {[%clk 00:01:16]} {[%emt 00:00:12]} e5 {[%clk 00:13:47]} {[%emt 00:00:37]}
40. Nh3 {[%clk 00:00:35]} {[%emt 00:01:10]} Rd3 {[%clk 00:08:27]} {[%emt
00:05:49]} 41. Rh2 {[%clk 00:12:58]} {[%emt 00:03:37]} Ne6 {[%clk 00:22:48]}
{[%emt 00:01:40]} 42. Ref2 {[%clk 00:07:02]} {[%emt 00:06:26]} e4 {[%clk
00:16:23]} {[%emt 00:06:55]} 43. Nf4 {[%clk 00:02:13]} {[%emt 00:05:19]} Nxf4
{[%clk 00:15:50]} {[%emt 00:01:03]} 44. Rxf4 {[%clk 00:02:41]} {[%emt
00:00:02]} Rd2+ {[%clk 00:16:14]} {[%emt 00:00:06]} 45. Rxd2 {[%clk 00:03:07]}
{[%emt 00:00:04]} Rxd2+ {[%clk 00:16:40]} {[%emt 00:00:05]} 46. Kb1 {[%clk
00:03:32]} {[%emt 00:00:05]} e3 {[%clk 00:16:49]} {[%emt 00:00:21]} 47. Re4
{[%clk 00:03:34]} {[%emt 00:00:27]} e2 {[%clk 00:17:03]} {[%emt 00:00:16]} 48.
Bc1 {[%clk 00:03:55]} {[%emt 00:00:09]} Rd4 {[%clk 00:17:24]} {[%emt 00:00:09]}
49. Rxe2 {[%clk 00:04:21]} {[%emt 00:00:05]} Rxg4 {[%clk 00:17:50]} {[%emt
00:00:03]} 50. Bd2 {[%clk 00:01:51]} {[%emt 00:03:00]} Bxd2 {[%clk 00:13:04]}
{[%emt 00:05:17]} 51. Rxd2 {[%clk 00:02:15]} {[%emt 00:00:05]} Rxh4 {[%clk
00:13:08]} {[%emt 00:00:26]} 52. Rd5 {[%clk 00:02:45]} g5 {[%clk 00:12:48]}
{[%emt 00:00:49]} 53. Rxc5 {[%clk 00:01:59]} {[%emt 00:01:16]} g4 {[%clk
00:13:13]} {[%emt 00:00:06]} 54. Rc7+ {[%clk 00:02:17]} {[%emt 00:00:12]} Kg6
{[%clk 00:13:36]} {[%emt 00:00:06]} 55. Rc8 {[%clk 00:02:07]} {[%emt 00:00:40]}
Kf5 {[%clk 00:13:41]} {[%emt 00:00:25]} 56. Rg8 {[%clk 00:01:29]} {[%emt
00:01:08]} Ke5 {[%clk 00:10:39]} {[%emt 00:03:32]} 57. Rg6 {[%clk 00:00:40]}
{[%emt 00:01:19]} h5 {[%clk 00:08:13]} {[%emt 00:02:56]} 58. Kc2 {[%clk
00:00:55]} {[%emt 00:00:16]} Rh3 {[%clk 00:08:28]} {[%emt 00:00:15]} 59. c5
{[%clk 00:00:56]} {[%emt 00:00:29]} Rf3 {[%clk 00:08:29]} {[%emt 00:00:28]} 60.
Rh6 {[%clk 00:00:45]} {[%emt 00:00:41]} Rf5 {[%clk 00:07:37]} {[%emt 00:01:21]}
61. b4 {[%clk 00:00:42]} {[%emt 00:00:34]} g3 {[%clk 00:07:11]} {[%emt
00:00:57]} 62. c6 {[%clk 00:00:46]} {[%emt 00:00:26]} Kd6 {[%clk 00:04:00]}
{[%emt 00:03:40]} 63. Rg6 {[%clk 00:01:02]} {[%emt 00:00:15]} h4 {[%clk
00:04:04]} {[%emt 00:00:26]} 64. b5 {[%clk 00:01:12]} {[%emt 00:00:19]} Rg5
{[%clk 00:02:24]} {[%emt 00:02:10]} 65. Rxf6+ {[%clk 00:01:34]} {[%emt
00:00:08]} Kc7 {[%clk 00:02:52]} {[%emt 00:00:03]} 66. Rf7+ {[%clk 00:01:42]}
{[%emt 00:00:21]} Kb6 {[%clk 00:02:32]} {[%emt 00:00:50]} 67. Rb7+ {[%clk
00:02:06]} {[%emt 00:00:06]} Ka5 {[%clk 00:03:01]} {[%emt 00:00:02]} 68. Rxa7+
{[%clk 00:01:44]} {[%emt 00:00:51]} Kb4 {[%clk 00:03:27]} {[%emt 00:00:04]} 69.
b6 {[%clk 00:01:42]} {[%emt 00:00:32]} Rc5+ {[%clk 00:02:16]} {[%emt 00:01:41]}
70. Kd3 {[%clk 00:01:37]} {[%emt 00:00:35]} Rxc6 {[%clk 00:02:02]} {[%emt
00:00:45]} 71. a5 {[%clk 00:00:43]} {[%emt 00:01:23]} g2 {[%clk 00:00:49]}
{[%emt 00:01:43]} 72. b7 {[%clk 00:00:33]} {[%emt 00:00:41]} Rd6+ {[%clk
00:01:16]} {[%emt 00:00:03]} 73. Ke2 {[%clk 00:00:46]} {[%emt 00:00:17]} Rd8
{[%clk 00:01:09]} {[%emt 00:00:36]} 74. Kf2 {[%clk 00:01:07]} {[%emt 00:00:09]}
h3 {[%clk 00:01:09]} {[%emt 00:00:30]} 75. Ra8 {[%clk 00:01:22]} {[%emt
00:00:15]} Rd2+ {[%clk 00:00:47]} {[%emt 00:00:53]} 76. Kf3 {[%clk 00:01:43]}
{[%emt 00:00:09]} g1=Q {[%clk 00:00:37]} {[%emt 00:00:39]} 77. b8=Q+ {[%clk
00:02:06]} {[%emt 00:00:07]} Kc3 {[%clk 00:00:32]} {[%emt 00:00:35]} 78. Qc7+
{[%clk 00:02:15]} {[%emt 00:00:20]} Kb2 {[%clk 00:00:32]} {[%emt 00:00:31]} 79.
Rb8+ {[%clk 00:02:29]} {[%emt 00:00:16]} Ka2 {[%clk 00:00:33]} {[%emt
00:00:29]} 80. Qc4+ {[%clk 00:02:35]} {[%emt 00:00:24]} Ka3 {[%clk 00:00:51]}
{[%emt 00:00:12]} 81. Qb3# {[%clk 00:03:00]} {[%emt 00:00:04]} 1-0

[Event "Polofinale MCR junioru 2023"]
[Site "Czech Republic"]
[Date "2023.11.16"]
[Round "7.9"]
[White "Prazak, Daniel"]
[Black "Tillman, Stanislav"]
[Result "1/2-1/2"]
[TimeControl "90 min per 40 moves + 15 min + 30 sec / move from move 1"]
[WhiteFideId "23709456"]
[BlackFideId "23714247"]
[WhiteElo "2103"]
[BlackElo "2021"]

1. d4 {[%clk 01:30:17]} {[%emt 00:00:36]} Nf6 {[%clk 01:30:36]} {[%emt
00:00:30]} 2. Nf3 {[%clk 01:30:06]} {[%emt 00:00:41]} d5 {[%clk 01:30:39]}
{[%emt 00:00:27]} 3. Bf4 {[%clk 01:28:38]} {[%emt 00:01:57]} c5 {[%clk
01:30:35]} {[%emt 00:00:35]} 4. e3 {[%clk 01:28:56]} {[%emt 00:00:12]} Nc6
{[%clk 01:26:45]} {[%emt 00:04:20]} 5. Nbd2 {[%clk 01:28:02]} {[%emt 00:01:24]}
Bf5 {[%clk 01:18:36]} {[%emt 00:08:38]} 6. dxc5 {[%clk 01:20:58]} {[%emt
00:07:36]} Qa5 {[%clk 01:18:17]} {[%emt 00:00:48]} 7. Nd4 {[%clk 01:18:39]}
{[%emt 00:02:49]} Nxd4 {[%clk 01:15:38]} {[%emt 00:03:09]} 8. exd4 {[%clk
01:18:47]} {[%emt 00:00:22]} Qb4 {[%clk 01:16:00]} {[%emt 00:00:07]} 9. Be3
{[%clk 01:13:28]} {[%emt 00:05:49]} e5 {[%clk 01:00:38]} {[%emt 00:15:53]} 10.
dxe5 {[%clk 01:06:14]} {[%emt 00:07:45]} Nd7 {[%clk 00:55:18]} {[%emt
00:05:49]} 11. Qc1 {[%clk 00:57:49]} {[%emt 00:08:55]} Bxc5 {[%clk 00:49:03]}
{[%emt 00:06:45]} 12. c3 {[%clk 00:55:59]} {[%emt 00:02:19]} Qb6 {[%clk
00:48:20]} {[%emt 00:01:14]} 13. Bxc5 {[%clk 00:54:38]} {[%emt 00:01:50]} Qxc5
{[%clk 00:44:40]} {[%emt 00:04:11]} 14. Nf3 {[%clk 00:51:19]} {[%emt 00:03:49]}
Be4 {[%clk 00:40:45]} {[%emt 00:04:25]} 15. Be2 {[%clk 00:38:02]} {[%emt
00:13:48]} Bxf3 {[%clk 00:39:10]} {[%emt 00:02:04]} 16. Bxf3 {[%clk 00:38:01]}
{[%emt 00:00:31]} Nxe5 {[%clk 00:39:26]} {[%emt 00:00:14]} 17. Qd1 {[%clk
00:33:13]} {[%emt 00:05:18]} O-O {[%clk 00:37:12]} {[%emt 00:02:44]} 18. O-O
{[%clk 00:31:39]} {[%emt 00:02:02]} Rad8 {[%clk 00:36:39]} {[%emt 00:01:05]} 19.
Re1 {[%clk 00:25:47]} {[%emt 00:06:22]} d4 {[%clk 00:33:42]} {[%emt 00:03:27]}
20. cxd4 {[%clk 00:25:12]} {[%emt 00:01:06]} Rxd4 {[%clk 00:33:15]} {[%emt
00:00:57]} 21. Qe2 {[%clk 00:24:53]} {[%emt 00:00:48]} Nxf3+ {[%clk 00:21:19]}
{[%emt 00:12:25]} 22. Qxf3 {[%clk 00:25:14]} {[%emt 00:00:10]} 1/2-1/2

[Event "Polofinale MCR junioru 2023"]
[Site "Czech Republic"]
[Date "2023.11.16"]
[Round "7.11"]
[White "Rousek, Jan"]
[Black "Hlavina, Matous"]
[Result "1/2-1/2"]
[TimeControl "90 min per 40 moves + 15 min + 30 sec / move from move 1"]
[WhiteFideId "386669"]
[BlackFideId "386650"]
[WhiteElo "2006"]
[BlackElo "2134"]

1. d4 {[%clk 01:30:55]} {[%emt 00:00:03]} d5 {[%clk 01:30:54]} {[%emt
00:00:08]} 2. Nf3 {[%clk 01:31:09]} {[%emt 00:00:16]} Nc6 {[%clk 01:31:19]}
{[%emt 00:00:04]} 3. c4 {[%clk 01:25:49]} {[%emt 00:05:51]} Bg4 {[%clk
01:26:25]} {[%emt 00:05:22]} 4. e3 {[%clk 01:19:55]} {[%emt 00:06:25]} Nf6
{[%clk 01:25:37]} {[%emt 00:01:18]} 5. Nc3 {[%clk 01:19:53]} {[%emt 00:00:32]}
g6 {[%clk 01:24:43]} {[%emt 00:01:24]} 6. h3 {[%clk 01:17:38]} {[%emt
00:02:45]} Bxf3 {[%clk 01:10:30]} {[%emt 00:14:43]} 7. Qxf3 {[%clk 01:17:40]}
{[%emt 00:00:27]} dxc4 {[%clk 01:10:54]} {[%emt 00:00:08]} 8. Bxc4 {[%clk
01:17:07]} {[%emt 00:01:03]} a6 {[%clk 01:10:42]} {[%emt 00:00:42]} 9. Ne4
{[%clk 01:03:02]} {[%emt 00:14:33]} Bg7 {[%clk 01:08:14]} {[%emt 00:02:59]} 10.
Nc5 {[%clk 00:55:31]} {[%emt 00:08:01]} O-O {[%clk 01:00:50]} {[%emt 00:07:55]}
11. Nxb7 {[%clk 00:52:13]} {[%emt 00:03:47]} Qd7 {[%clk 00:57:29]} {[%emt
00:03:51]} 12. O-O {[%clk 00:49:42]} {[%emt 00:03:01]} e5 {[%clk 00:56:01]}
{[%emt 00:01:58]} 13. Nc5 {[%clk 00:33:59]} {[%emt 00:16:13]} Qd6 {[%clk
00:55:19]} {[%emt 00:01:12]} 14. Nb7 {[%clk 00:32:30]} {[%emt 00:02:00]} Qd7
{[%clk 00:54:21]} {[%emt 00:01:11]} 15. Nc5 {[%clk 00:24:55]} {[%emt 00:08:21]}
Qd6 {[%clk 00:54:40]} {[%emt 00:00:10]} 1/2-1/2

[Event "Polofinale MCR junioru 2023"]
[Site "Czech Republic"]
[Date "2023.11.16"]
[Round "7.12"]
[White "Hurtik, Matej"]
[Black "Cerny, Michal"]
[Result "1-0"]
[TimeControl "90 min per 40 moves + 15 min + 30 sec / move from move 1"]
[WhiteFideId "397997"]
[BlackFideId "391964"]
[WhiteElo "2131"]
[BlackElo "1920"]

1. e4 {[%clk 01:27:29]} {[%emt 00:03:31]} c5 {[%clk 01:30:43]} {[%emt
00:00:17]} 2. Nf3 {[%clk 01:26:54]} {[%emt 00:00:48]} e6 {[%clk 01:31:02]}
{[%emt 00:00:27]} 3. d4 {[%clk 01:26:48]} {[%emt 00:00:36]} cxd4 {[%clk
01:31:24]} {[%emt 00:00:09]} 4. c3 {[%clk 01:27:11]} {[%emt 00:00:06]} dxc3
{[%clk 01:30:41]} {[%emt 00:01:13]} 5. Nxc3 {[%clk 01:27:39]} {[%emt 00:00:02]}
d6 {[%clk 01:29:24]} {[%emt 00:01:48]} 6. Bc4 {[%clk 01:28:01]} {[%emt
00:00:08]} Qc7 {[%clk 01:26:34]} {[%emt 00:03:20]} 7. Qe2 {[%clk 01:27:31]}
{[%emt 00:00:59]} a6 {[%clk 01:26:15]} {[%emt 00:00:49]} 8. O-O {[%clk
01:27:52]} {[%emt 00:00:09]} Nc6 {[%clk 01:25:52]} {[%emt 00:00:53]} 9. Rd1
{[%clk 01:28:15]} {[%emt 00:00:06]} Nf6 {[%clk 01:13:59]} {[%emt 00:12:24]} 10.
Bf4 {[%clk 01:28:21]} {[%emt 00:00:24]} Ne5 {[%clk 01:12:48]} {[%emt 00:01:40]}
11. Bb3 {[%clk 01:27:31]} {[%emt 00:01:20]} Bd7 {[%clk 01:10:15]} {[%emt
00:03:03]} 12. Rac1 {[%clk 01:26:17]} {[%emt 00:01:45]} Qb8 {[%clk 01:09:41]}
{[%emt 00:01:04]} 13. Nd5 {[%clk 01:21:29]} {[%emt 00:05:18]} Nxf3+ {[%clk
01:06:29]} {[%emt 00:03:42]} 14. Qxf3 {[%clk 01:21:29]} {[%emt 00:00:30]} Nxd5
{[%clk 01:05:35]} {[%emt 00:01:24]} 15. exd5 {[%clk 01:21:52]} {[%emt
00:00:07]} e5 {[%clk 01:05:52]} {[%emt 00:00:13]} 16. Bxe5 {[%clk 01:22:08]}
{[%emt 00:00:14]} dxe5 {[%clk 01:01:16]} {[%emt 00:05:06]} 17. d6 {[%clk
01:22:32]} {[%emt 00:00:07]} f6 {[%clk 00:59:38]} {[%emt 00:02:07]} 18. Rc7
{[%clk 01:20:50]} {[%emt 00:02:12]} 1-0

[Event "Polofinale MCR junioru 2023"]
[Site "Czech Republic"]
[Date "2023.11.16"]
[Round "7.13"]
[White "Pecka, Jan"]
[Black "Jirasko, Miroslav"]
[Result "0-1"]
[TimeControl "90 min per 40 moves + 15 min + 30 sec / move from move 1"]
[WhiteFideId "23712520"]
[BlackFideId "23729414"]
[WhiteElo "1999"]
[BlackElo "2084"]

1. e4 {[%clk 01:26:23]} {[%emt 00:04:35]} c5 {[%clk 01:30:52]} {[%emt
00:00:09]} 2. Nf3 {[%clk 01:26:27]} {[%emt 00:00:26]} Nc6 {[%clk 01:31:18]}
{[%emt 00:00:05]} 3. Bb5 {[%clk 01:26:48]} {[%emt 00:00:08]} g6 {[%clk
01:31:44]} {[%emt 00:00:04]} 4. O-O {[%clk 01:27:07]} {[%emt 00:00:10]} Bg7
{[%clk 01:32:04]} {[%emt 00:00:11]} 5. c3 {[%clk 01:27:21]} {[%emt 00:00:16]}
Nf6 {[%clk 01:31:54]} {[%emt 00:00:39]} 6. Re1 {[%clk 01:27:45]} {[%emt
00:00:07]} O-O {[%clk 01:32:06]} {[%emt 00:00:18]} 7. d4 {[%clk 01:27:50]}
{[%emt 00:00:24]} d5 {[%clk 01:32:22]} {[%emt 00:00:15]} 8. e5 {[%clk
01:28:09]} {[%emt 00:00:11]} Ne4 {[%clk 01:32:46]} {[%emt 00:00:06]} 9. Bxc6
{[%clk 01:28:28]} {[%emt 00:00:11]} bxc6 {[%clk 01:33:10]} {[%emt 00:00:06]} 10.
Nbd2 {[%clk 01:28:45]} {[%emt 00:00:13]} cxd4 {[%clk 01:32:14]} {[%emt
00:01:26]} 11. cxd4 {[%clk 01:28:52]} {[%emt 00:00:23]} c5 {[%clk 01:32:08]}
{[%emt 00:00:37]} 12. dxc5 {[%clk 01:29:14]} {[%emt 00:00:07]} Nxc5 {[%clk
01:32:19]} {[%emt 00:00:19]} 13. Nb3 {[%clk 01:29:34]} {[%emt 00:00:11]} Nxb3
{[%clk 01:32:39]} {[%emt 00:00:10]} 14. Qxb3 {[%clk 01:29:55]} {[%emt
00:00:09]} d4 {[%clk 01:31:07]} {[%emt 00:02:02]} 15. Rd1 {[%clk 01:21:44]}
{[%emt 00:08:41]} Be6 {[%clk 01:13:45]} {[%emt 00:17:52]} 16. Qa3 {[%clk
01:20:08]} {[%emt 00:02:05]} Qb6 {[%clk 01:10:27]} {[%emt 00:03:48]} 17. Nxd4
{[%clk 01:14:37]} {[%emt 00:06:02]} Bxe5 {[%clk 01:10:41]} {[%emt 00:00:16]} 18.
Be3 {[%clk 01:14:58]} {[%emt 00:00:08]} Rfd8 {[%clk 00:56:41]} {[%emt
00:14:30]} 19. Nxe6 {[%clk 01:14:08]} {[%emt 00:01:20]} Qxe6 {[%clk 00:55:01]}
{[%emt 00:02:10]} 20. Rxd8+ {[%clk 01:10:14]} {[%emt 00:04:24]} Rxd8 {[%clk
00:54:46]} {[%emt 00:00:46]} 21. Rc1 {[%clk 01:07:24]} {[%emt 00:03:20]} a6
{[%clk 00:42:04]} {[%emt 00:13:12]} 22. b3 {[%clk 01:06:01]} {[%emt 00:01:53]}
h5 {[%clk 00:37:37]} {[%emt 00:04:57]} 23. Qa5 {[%clk 00:59:29]} {[%emt
00:07:02]} Rd5 {[%clk 00:36:15]} {[%emt 00:01:52]} 24. Qa4 {[%clk 00:59:51]}
{[%emt 00:00:07]} Kg7 {[%clk 00:30:39]} {[%emt 00:06:07]} 25. g3 {[%clk
00:57:27]} {[%emt 00:02:54]} Bf6 {[%clk 00:26:57]} {[%emt 00:04:12]} 26. Qc6
{[%clk 00:49:26]} {[%emt 00:08:30]} Qe4 {[%clk 00:25:04]} {[%emt 00:02:24]} 27.
Qc4 {[%clk 00:44:52]} {[%emt 00:05:04]} Bd4 {[%clk 00:22:15]} {[%emt 00:03:18]}
28. Bxd4+ {[%clk 00:43:10]} {[%emt 00:02:12]} Rxd4 {[%clk 00:22:39]} {[%emt
00:00:07]} 29. Qxa6 {[%clk 00:43:24]} {[%emt 00:00:15]} h4 {[%clk 00:21:46]}
{[%emt 00:01:24]} 30. Qf1 {[%clk 00:40:22]} {[%emt 00:03:31]} Rd2 {[%clk
00:21:56]} {[%emt 00:00:19]} 31. a4 {[%clk 00:25:45]} {[%emt 00:15:09]} Rd3
{[%clk 00:16:04]} {[%emt 00:06:21]} 32. b4 {[%clk 00:22:54]} {[%emt 00:03:23]}
Qd4 {[%clk 00:16:12]} {[%emt 00:00:21]} 33. Qg2 {[%clk 00:19:26]} {[%emt
00:03:57]} Qxb4 {[%clk 00:16:07]} {[%emt 00:00:35]} 34. Qc6 {[%clk 00:18:06]}
{[%emt 00:01:50]} h3 {[%clk 00:14:38]} {[%emt 00:02:00]} 35. Qc8 {[%clk
00:17:32]} {[%emt 00:01:04]} e6 {[%clk 00:13:56]} {[%emt 00:01:11]} 36. Qc6
{[%clk 00:16:55]} {[%emt 00:01:08]} Qd4 {[%clk 00:13:09]} {[%emt 00:01:16]} 37.
Rf1 {[%clk 00:16:37]} {[%emt 00:00:48]} Rc3 {[%clk 00:12:28]} {[%emt 00:01:12]}
38. Qa8 {[%clk 00:16:23]} {[%emt 00:00:44]} Qc4 {[%clk 00:09:40]} {[%emt
00:03:17]} 39. Qd8 {[%clk 00:12:31]} {[%emt 00:04:22]} Qe4 {[%clk 00:08:12]}
{[%emt 00:01:58]} 40. f3 {[%clk 00:12:55]} {[%emt 00:00:06]} Qe3+ {[%clk
00:08:37]} {[%emt 00:00:05]} 41. Kh1 {[%clk 00:13:14]} {[%emt 00:00:12]} Qf2
{[%clk 00:08:46]} {[%emt 00:00:21]} 42. Rxf2 {[%clk 00:13:30]} {[%emt
00:00:12]} Rc1+ {[%clk 00:09:12]} {[%emt 00:00:05]} 43. Rf1 {[%clk 00:13:54]}
{[%emt 00:00:06]} Rxf1# {[%emt 00:00:04]} 0-1

[Event "Polofinale MCR junioru 2023"]
[Site "Czech Republic"]
[Date "2023.11.16"]
[Round "7.14"]
[White "Trojan, Matyas"]
[Black "Bezdek, Tomas"]
[Result "0-1"]
[TimeControl "90 min per 40 moves + 15 min + 30 sec / move from move 1"]
[WhiteFideId "23710764"]
[BlackFideId "23733551"]
[WhiteElo "1957"]
[BlackElo "2078"]

1. e4 {[%clk 01:30:53]} {[%emt 00:00:06]} e6 {[%clk 01:30:37]} {[%emt
00:00:24]} 2. d4 {[%clk 01:31:09]} {[%emt 00:00:13]} d5 {[%clk 01:30:48]}
{[%emt 00:00:19]} 3. e5 {[%clk 01:30:56]} {[%emt 00:00:43]} c5 {[%clk
01:31:07]} {[%emt 00:00:11]} 4. c3 {[%clk 01:31:21]} {[%emt 00:00:06]} Nc6
{[%clk 01:31:32]} {[%emt 00:00:05]} 5. Nf3 {[%clk 01:31:45]} {[%emt 00:00:05]}
Qb6 {[%clk 01:31:48]} {[%emt 00:00:15]} 6. a3 {[%clk 01:27:04]} {[%emt
00:05:11]} c4 {[%clk 01:29:55]} {[%emt 00:02:23]} 7. Be2 {[%clk 01:24:25]}
{[%emt 00:03:08]} Bd7 {[%clk 01:28:06]} {[%emt 00:02:19]} 8. Nbd2 {[%clk
01:23:45]} {[%emt 00:01:10]} Na5 {[%clk 01:28:01]} {[%emt 00:00:36]} 9. O-O
{[%clk 01:22:20]} {[%emt 00:01:54]} Ne7 {[%clk 01:28:22]} {[%emt 00:00:09]} 10.
Qc2 {[%clk 01:11:29]} {[%emt 00:11:21]} Qc7 {[%clk 01:27:02]} {[%emt 00:01:50]}
11. Re1 {[%clk 01:09:45]} {[%emt 00:02:13]} Nc8 {[%clk 01:25:07]} {[%emt
00:02:25]} 12. Nf1 {[%clk 01:02:09]} {[%emt 00:08:06]} Nb6 {[%clk 01:24:55]}
{[%emt 00:00:43]} 13. Bd1 {[%clk 01:00:30]} {[%emt 00:02:08]} Ba4 {[%clk
01:22:46]} {[%emt 00:02:40]} 14. Qe2 {[%clk 01:00:00]} {[%emt 00:01:00]} Bxd1
{[%clk 01:20:24]} {[%emt 00:02:53]} 15. Qxd1 {[%clk 00:59:35]} {[%emt
00:00:54]} O-O-O {[%clk 01:20:11]} {[%emt 00:00:43]} 16. Ng3 {[%clk 00:57:54]}
{[%emt 00:02:11]} Be7 {[%clk 01:17:18]} {[%emt 00:03:23]} 17. Be3 {[%clk
00:54:44]} {[%emt 00:03:40]} Rdg8 {[%clk 01:16:03]} {[%emt 00:01:45]} 18. h4
{[%clk 00:51:49]} {[%emt 00:03:25]} f5 {[%clk 01:05:09]} {[%emt 00:11:24]} 19.
exf6 {[%clk 00:36:27]} {[%emt 00:15:52]} gxf6 {[%clk 01:04:15]} {[%emt
00:01:24]} 20. Nh5 {[%clk 00:33:07]} {[%emt 00:03:50]} Bd6 {[%clk 00:48:18]}
{[%emt 00:16:27]} 21. g3 {[%clk 00:29:13]} {[%emt 00:04:24]} Qf7 {[%clk
00:43:49]} {[%emt 00:04:59]} 22. Bf4 {[%clk 00:23:21]} {[%emt 00:06:22]} Qxh5
{[%clk 00:35:39]} {[%emt 00:08:40]} 23. Bxd6 {[%clk 00:23:40]} {[%emt
00:00:12]} Qf5 {[%clk 00:35:12]} {[%emt 00:00:56]} 24. Kh2 {[%clk 00:22:15]}
{[%emt 00:01:55]} Nb3 {[%clk 00:32:50]} {[%emt 00:02:52]} 25. Rb1 {[%clk
00:22:21]} {[%emt 00:00:25]} Rg4 {[%clk 00:32:09]} {[%emt 00:01:09]} 26. Bf4
{[%clk 00:21:27]} {[%emt 00:01:24]} Rhg8 {[%clk 00:30:53]} {[%emt 00:01:47]} 27.
Qe2 {[%clk 00:20:44]} {[%emt 00:01:13]} Kd7 {[%clk 00:23:14]} {[%emt 00:08:09]}
28. Kh1 {[%clk 00:19:42]} {[%emt 00:01:32]} Rxf4 {[%clk 00:21:57]} {[%emt
00:01:47]} 29. gxf4 {[%clk 00:18:03]} {[%emt 00:02:09]} Qh3+ {[%clk 00:22:12]}
{[%emt 00:00:14]} 30. Nh2 {[%clk 00:18:20]} {[%emt 00:00:14]} Qg2# {[%emt
00:00:20]} 0-1